bitfinex/quotes_SOLUSD_20241107
["timestamp","ask_amount","ask_price","bid_price","bid_amount"]
[1730950242136,21.21872411,190.44,190.37,21.21872411]
[1730950242462,27.82652411,190.45,190.38,21.21872411]
[1730950243154,27.82652411,190.45,190.39,21.21872411]
[1730950243763,27.82652411,190.45,190.38,21.21872411]
[1730950244262,21.34421411,190.44,190.37,21.21872411]
[1730950246138,27.82652411,190.45,190.38,21.21872411]
[1730950246361,6.6078,190.45,190.39,21.21872411]
[1730950246872,21.21872411,190.43,190.36,21.21872411]
[1730950247337,21.34421411,190.44,190.37,21.21872411]
[1730950248160,21.34421411,190.44,190.38,21.21872411]
[1730950250248,21.21872411,190.42,190.36,21.21872411]
[1730950250470,21.21872411,190.42,190.35,21.21872411]
[1730950250968,21.21872411,190.43,190.36,21.21872411]
[1730950251357,13.23665604,190.43,190.36,13.23665604]
[1730950251669,13.23664897,190.42,190.35,13.23664897]
[1730950251843,0.12549,190.41,190.35,13.23664897]
[1730950253265,0.12549,190.41,190.36,13.23664897]
[1730950254274,6.6078,190.45,190.36,13.23664897]
[1730950254275,13.23664897,190.43,190.36,13.23664897]
[1730950254566,13.23664897,190.47,190.41,13.23664897]
[1730950255071,13.23664897,190.48,190.41,13.23664897]
[1730950255369,13.23664897,190.47,190.41,13.23664897]
[1730950256142,12.12844421,190.47,190.4,12.12844421]
[1730950257057,12.12844421,190.47,190.39,12.12844421]
[1730950257943,12.12844421,190.45,190.38,12.12844421]
[1730950258143,12.12844421,190.44,190.37,12.12844421]
[1730950258362,12.13237234,190.44,190.37,12.13237234]
[1730950259177,12.13237234,190.42,190.35,12.13237234]
[1730950259682,36.03474634,190.41,190.34,12.13237234]
[1730950259981,12.13237234,190.39,190.32,12.13237234]
[1730950260186,23.876884,190.46,190.31,12.13237234]
[1730950260187,12.13237234,190.38,190.31,12.13237234]
[1730950260980,0.12549,190.45,190.3,12.13237234]
[1730950260981,12.25786234,190.37,190.3,12.13237234]
[1730950261566,12.13237234,190.38,190.31,12.13237234]
[1730950263779,12.13237234,190.37,190.3,12.13237234]
[1730950263980,12.13237234,190.42,190.34,12.13237234]
[1730950264185,12.13237234,190.42,190.35,12.13237234]
[1730950265290,12.13237234,190.41,190.34,12.13237234]
[1730950266894,12.13237234,190.43,190.37,12.13237234]
[1730950267067,5.60713226,190.44,190.38,12.13237234]
[1730950267262,17.7395046,190.44,190.37,12.13237234]
[1730950267490,17.6140146,190.44,190.37,12.13237234]
[1730950267664,34.21897234,190.45,190.38,12.13237234]
[1730950268170,12.13237234,190.44,190.37,12.13237234]
[1730950269476,12.13237234,190.4,190.33,12.13237234]
[1730950269783,12.13237234,190.38,190.31,12.13237234]
[1730950269984,12.13237234,190.38,190.32,20.0]
[1730950270184,12.13237234,190.36,190.3,12.13237234]
[1730950270386,12.13237234,190.33,190.26,12.13237234]
[1730950270696,12.13237234,190.41,190.21,5.48165168]
[1730950270697,12.13237234,190.31,190.24,12.13237234]
[1730950270897,12.13237234,190.3,190.23,12.13237234]
[1730950271104,12.13237234,190.31,190.24,12.13237234]
[1730950271275,19.4377995,190.31,190.24,19.4377995]
[1730950272080,19.4377995,190.29,190.23,19.4377995]
[1730950272596,19.4377995,190.29,190.22,19.4377995]
[1730950272896,19.4377995,190.27,190.2,19.4377995]
[1730950273190,0.12549,190.26,190.2,19.4377995]
[1730950273399,19.5632895,190.26,190.19,19.4377995]
[1730950273969,19.5632895,190.24,190.17,19.4377995]
[1730950274173,19.4377995,190.22,190.15,19.4377995]
[1730950274369,19.4377995,190.2,190.11,15.3749]
[1730950274596,19.4377995,190.18,190.06,15.5706]
[1730950274794,0.12549,190.17,190.11,19.4377995]
[1730950274998,19.4377995,190.16,190.09,19.4377995]
[1730950275311,19.4377995,190.2,190.13,19.4377995]
[1730950275481,0.12549,190.17,190.11,19.4377995]
[1730950275681,19.5632895,190.17,190.1,19.4377995]
[1730950275983,19.4377995,190.19,190.12,19.4377995]
[1730950276173,19.4377995,190.21,190.14,19.4377995]
[1730950276373,19.4377995,190.23,190.16,19.4377995]
[1730950276588,19.4377995,190.21,190.08,0.2]
[1730950276789,0.12549,190.19,190.13,19.4377995]
[1730950276997,0.12549,190.19,190.14,19.4377995]
[1730950277204,19.4377995,190.19,190.07,20.0]
[1730950277378,19.5632895,190.18,190.11,19.4377995]
[1730950277581,19.4377995,190.17,190.1,19.4377995]
[1730950278179,19.5632895,190.17,190.1,19.4377995]
[1730950278502,0.12549,190.15,190.1,19.4377995]
[1730950279297,22.683,190.24,190.06,15.5706]
[1730950279298,19.5632895,190.16,190.09,19.4377995]
[1730950279503,0.12549,190.16,190.1,19.4377995]
[1730950280285,19.4377995,190.19,190.12,19.4377995]
[1730950280486,23.776884,190.19,190.13,19.4377995]
[1730950280694,19.4377995,190.2,190.13,19.4377995]
[1730950281073,19.4377995,190.21,190.14,19.4377995]
[1730950281279,19.4377995,190.22,190.15,19.4377995]
[1730950281499,19.5632895,190.2,190.13,19.4377995]
[1730950282578,0.12549,190.18,190.11,19.4377995]
[1730950282782,0.12549,190.16,190.1,19.4377995]
[1730950283401,0.12549,190.16,190.06,15.5706]
[1730950283402,19.5632895,190.16,190.09,19.4377995]
[1730950283584,0.12549,190.16,190.1,19.4377995]
[1730950284205,43.3401735,190.17,190.1,19.4377995]
[1730950284589,0.12549,190.17,190.12,19.4377995]
[1730950284802,5.48813013,190.23,190.06,15.5706]
[1730950284803,19.4377995,190.21,190.14,19.4377995]
[1730950285013,19.4377995,190.22,190.15,19.4377995]
[1730950285212,19.5632895,190.21,190.14,19.4377995]
[1730950285884,24.92592963,190.23,190.16,19.4377995]
[1730950286079,0.12549,190.21,190.15,19.4377995]
[1730950286603,0.12549,190.19,190.13,19.4377995]
[1730950286801,0.12549,190.18,190.12,19.4377995]
[1730950287585,0.12549,190.19,190.13,19.4377995]
[1730950287787,19.5632895,190.19,190.12,19.4377995]
[1730950288608,0.12549,190.15,190.09,19.4377995]
[1730950289302,19.4377995,190.17,190.11,19.4377995]
[1730950289894,19.4377995,190.18,190.11,19.4377995]
[1730950290120,19.4377995,190.19,190.12,19.4377995]
[1730950290293,19.5632895,190.18,190.11,19.4377995]
[1730950290793,19.5632895,190.18,190.06,15.5706]
[1730950290794,0.12549,190.18,190.12,19.4377995]
[1730950290994,0.12549,190.17,190.12,19.4377995]
[1730950291391,0.12549,190.17,190.11,19.4377995]
[1730950291584,0.12549,190.16,190.1,19.4377995]
[1730950292092,0.12549,190.16,190.11,19.4377995]
[1730950292400,19.4377995,190.2,190.13,19.4377995]
[1730950292788,0.12549,190.19,190.14,19.4377995]
[1730950293389,0.12549,190.19,190.13,19.4377995]
[1730950293707,19.5632895,190.19,190.12,19.4377995]
[1730950293911,0.12549,190.17,190.12,19.4377995]
[1730950294490,0.12549,190.18,190.12,19.4377995]
[1730950294697,0.12549,190.18,190.06,15.5706]
[1730950294898,0.12549,190.18,190.14,19.4377995]
[1730950295206,43.2146835,190.2,190.06,15.5706]
[1730950295207,23.902374,190.16,190.1,19.4377995]
[1730950295411,23.902374,190.16,190.11,19.4377995]
[1730950295706,19.4377995,190.19,190.12,19.4377995]
[1730950295905,23.902374,190.18,190.12,19.4377995]
[1730950296300,43.3401735,190.18,190.11,19.4377995]
[1730950296702,23.902374,190.18,190.12,19.4377995]
[1730950297510,23.902374,190.18,190.11,19.4377995]
[1730950298317,19.5632895,190.15,190.08,19.4377995]
[1730950298490,0.12549,190.13,190.08,19.4377995]
[1730950299389,0.12549,190.13,190.07,12.16951964]
[1730950299717,0.12549,190.11,190.06,12.16951964]
[1730950299935,12.16951964,190.13,190.02,20.0]
[1730950299936,23.776884,190.13,190.08,12.16951964]
[1730950300215,0.12549,190.1,190.05,12.16951964]
[1730950301401,0.12549,190.1,190.06,12.16951964]
[1730950301900,23.776884,190.11,189.98,12.16951964]
[1730950301901,0.12549,190.06,189.98,12.16951964]
[1730950302104,0.12549,190.06,190.02,12.16951964]
[1730950302292,12.16951964,190.09,190.03,12.16951964]
[1730950302493,12.16951964,190.1,190.03,12.16951964]
[1730950302700,23.776884,190.09,190.03,12.16951964]
[1730950302912,0.12549,190.08,190.03,12.16951964]
[1730950303124,0.12549,190.08,190.04,12.16951964]
[1730950303302,0.12549,190.08,190.04,19.48032592]
[1730950304117,19.48032592,190.12,190.06,19.48032592]
[1730950304327,25.84902592,190.14,190.08,19.48032592]
[1730950304499,0.12549,190.13,190.07,19.48032592]
[1730950304699,0.12549,190.11,190.05,19.48032592]
[1730950305307,19.60581592,190.13,190.06,19.48032592]
[1730950305502,19.48032592,190.13,190.07,19.48032592]
[1730950305923,23.776884,190.13,190.07,19.48032592]
[1730950306222,19.60581592,190.12,190.06,19.48032592]
[1730950306602,0.12549,190.12,190.06,19.48032592]
[1730950306803,19.60581592,190.12,190.06,19.48032592]
[1730950307413,19.60581592,190.12,190.05,19.48032592]
[1730950307619,19.48032592,190.1,190.03,19.48032592]
[1730950307816,19.48032592,190.09,190.02,19.48032592]
[1730950308004,19.48032592,190.11,190.04,19.48032592]
[1730950308205,0.12549,190.1,190.04,19.48032592]
[1730950308722,0.12549,190.1,190.05,19.48032592]
[1730950309227,5.49041496,190.12,190.08,19.48032592]
[1730950311337,0.12549,190.12,190.07,19.48032592]
[1730950311706,19.60581592,190.12,190.05,19.48032592]
[1730950311911,0.12549,190.12,190.06,19.48032592]
[1730950313717,0.12549,190.12,190.05,19.48032592]
[1730950314430,0.12549,190.1,190.04,19.48032592]
[1730950314603,19.48032592,190.1,190.03,19.48032592]
[1730950314804,19.48032592,190.12,190.05,19.48032592]
[1730950315003,23.776884,190.13,190.07,19.48032592]
[1730950315202,23.776884,190.13,189.99,0.1]
[1730950315203,0.12549,190.12,190.06,19.48032592]
[1730950318329,19.48032592,190.11,190.04,19.48032592]
[1730950319433,19.48032592,190.11,190.04,20.0]
[1730950320311,19.48032592,190.12,190.06,39.48032592]
[1730950320519,19.48032592,190.13,190.06,19.48032592]
[1730950320724,19.48032592,190.14,190.08,19.48032592]
[1730950321315,19.48032592,190.14,190.07,19.48032592]
[1730950321619,19.48032592,190.12,190.04,19.48032592]
[1730950321812,19.48032592,190.11,190.05,20.0]
[1730950322516,19.48032592,190.12,190.05,20.0]
[1730950322933,19.48032592,190.1,190.04,20.0]
[1730950323540,12.1744668,190.11,190.04,12.1744668]
[1730950324030,12.1744668,190.12,190.05,12.1744668]
[1730950324233,18.3620668,190.17,190.1,12.1744668]
[1730950324536,12.1744668,190.17,190.1,12.1744668]
[1730950324708,6.3545,190.21,190.02,15.6719]
[1730950324709,0.12549,190.15,190.02,15.6719]
[1730950325114,0.22549,190.19,190.02,15.6719]
[1730950325643,24.102374,190.17,189.99,1.29329322]
[1730950325932,12.1744668,190.08,190.01,12.1744668]
[1730950326536,0.12549,190.07,190.01,12.1744668]
[1730950327239,12.1744668,190.11,190.04,12.1744668]
[1730950327541,19.47811148,190.12,190.06,19.47811148]
[1730950327717,19.47811148,190.12,190.05,19.47811148]
[1730950328822,19.47811148,190.11,190.04,19.47811148]
[1730950329037,19.47811148,190.11,190.05,19.47811148]
[1730950329733,19.47811148,190.1,190.02,19.47811148]
[1730950330036,19.47811148,190.08,190.02,20.0]
[1730950330550,19.47811148,190.07,190.01,20.0]
[1730950330748,19.47811148,190.06,189.99,19.47811148]
[1730950331054,19.47811148,190.06,190.0,19.47811148]
[1730950331335,19.47811148,190.07,190.01,0.07881226]
[1730950331541,0.12549,190.09,190.01,0.07881226]
[1730950331542,19.47811148,190.06,190.01,0.07881226]
[1730950331838,19.47811148,190.07,190.01,0.07881226]
[1730950332047,19.47811148,190.07,190.0,19.47811148]
[1730950332339,19.47811148,190.06,190.0,19.47811148]
[1730950333932,19.47811148,190.07,190.0,19.47811148]
[1730950334138,23.902374,190.07,190.01,19.47811148]
[1730950334929,43.38048548,190.07,190.0,19.47811148]
[1730950336945,19.47811148,190.01,189.94,19.47811148]
[1730950337136,19.47811148,190.02,189.96,19.47811148]
[1730950337447,19.60360148,190.03,189.96,19.47811148]
[1730950338358,23.902374,189.96,189.88,19.47811148]
[1730950338528,19.47811148,189.94,189.88,19.47811148]
[1730950338856,19.47811148,189.93,189.86,19.47811148]
[1730950339152,19.47811148,189.92,189.86,19.47811148]
[1730950339653,19.47811148,189.92,189.85,19.47811148]
[1730950340346,19.47811148,189.92,189.86,19.47811148]
[1730950340532,19.47811148,189.93,189.86,19.47811148]
[1730950341554,19.47811148,189.93,189.87,19.47811148]
[1730950341733,0.12549,189.93,189.87,19.47811148]
[1730950342053,23.902374,189.93,189.87,19.47811148]
[1730950343227,19.47811148,189.96,189.89,19.47811148]
[1730950343535,43.25499548,189.95,189.88,19.47811148]
[1730950343735,43.25499548,189.95,189.86,19.47811148]
[1730950343736,19.47811148,189.93,189.86,19.47811148]
[1730950343926,19.47811148,189.92,189.86,19.47811148]
[1730950344352,19.47811148,189.9,189.84,0.583521]
[1730950344560,19.47811148,189.89,189.84,0.583521]
[1730950344857,19.47811148,189.88,189.84,0.583521]
[1730950345042,19.47811148,189.89,189.84,0.583521]
[1730950347157,19.52323966,189.89,189.84,0.583521]
[1730950347467,16.2697,189.91,189.84,0.583521]
[1730950347468,12.33187841,189.85,189.84,0.583521]
[1730950347756,36.10876241,189.85,189.84,0.583521]
[1730950355163,35.9964844,189.77,189.7,12.2196004]
[1730950356644,12.2196004,189.75,189.69,20.0]
[1730950356955,23.776884,189.75,189.69,20.0]
[1730950357158,35.9964844,189.75,189.69,20.0]
[1730950357360,23.776884,189.75,189.69,12.2196004]
[1730950358162,12.2196004,189.74,189.68,32.2196004]
[1730950358344,35.9964844,189.75,189.68,32.2196004]
[1730950358534,23.776884,189.75,189.7,12.2196004]
[1730950358739,23.776884,189.75,189.69,12.2196004]
[1730950358935,18.5378004,189.77,189.7,12.2196004]
[1730950359159,12.2196004,189.76,189.7,12.2196004]
[1730950359863,12.2196004,189.75,189.65,1.86872347]
[1730950360047,12.2196004,189.76,189.69,12.2196004]
[1730950360560,12.2196004,189.75,189.69,12.2196004]
[1730950360767,35.9964844,189.76,189.69,12.2196004]
[1730950360946,35.9964844,189.76,189.7,12.2196004]
[1730950361148,12.2196004,189.76,189.7,12.2196004]
[1730950361664,23.776884,189.77,189.71,12.2196004]
[1730950362262,12.2196004,189.78,189.71,12.2196004]
[1730950362959,12.2196004,189.77,189.7,12.2196004]
[1730950363167,12.2196004,189.77,189.71,12.2196004]
[1730950363646,12.2196004,189.79,189.73,12.2196004]
[1730950363841,12.2196004,189.82,189.75,12.2196004]
[1730950364566,12.2196004,189.81,189.74,12.2196004]
[1730950364756,0.12549,189.83,189.73,32.2196004]
[1730950364757,12.2196004,189.8,189.73,32.2196004]
[1730950365265,12.2196004,189.8,189.74,12.2196004]
[1730950366866,12.2196004,189.79,189.73,32.2196004]
[1730950367251,12.2196004,189.79,189.72,12.2196004]
[1730950368453,12.2196004,189.78,189.71,12.2196004]
[1730950368655,12.2196004,189.78,189.72,20.0]
[1730950368850,12.2196004,189.76,189.69,12.2196004]
[1730950370161,0.2,189.83,189.68,15.0586]
[1730950370162,12.2196004,189.77,189.7,12.2196004]
[1730950370467,12.2196004,189.75,189.69,12.2196004]
[1730950370653,12.2196004,189.76,189.69,12.2196004]
[1730950370856,12.2196004,189.77,189.7,12.2196004]
[1730950372268,12.2196004,189.76,189.7,12.2196004]
[1730950372774,12.2196004,189.74,189.68,12.2196004]
[1730950373270,12.2196004,189.74,189.67,12.2196004]
[1730950373271,27.7618004,189.74,189.67,12.2196004]
[1730950373483,12.2196004,189.72,189.65,0.583521]
[1730950373646,12.2196004,189.72,189.65,12.8031214]
[1730950373647,0.12549,189.71,189.65,12.8031214]
[1730950374072,12.2196004,189.7,189.65,0.583521]
[1730950374374,12.2196004,189.68,189.65,0.583521]
[1730950374876,5.4983328,189.73,189.65,0.583521]
[1730950374877,12.2196004,189.69,189.65,0.583521]
[1730950376069,0.12549,189.69,189.65,0.583521]
[1730950376958,12.2196004,189.67,189.65,0.583521]
[1730950377171,0.12549,189.68,189.65,0.583521]
[1730950377470,36.1219744,189.68,189.65,0.583521]
[1730950377871,0.12549,189.66,189.65,0.583521]
[1730950378050,12.3450904,189.66,189.65,0.583521]
[1730950378670,36.1219744,189.66,189.65,0.583521]
[1730950380554,18.2525004,189.68,189.65,0.583521]
[1730950380752,18.2525004,189.68,189.52,15.8541]
[1730950380753,0.1,189.64,189.48,15.7541]
[1730950380956,0.1,189.64,189.49,12.2196004]
[1730950380957,12.2196004,189.55,189.49,12.2196004]
[1730950381386,12.2196004,189.56,189.5,12.2196004]
[1730950381554,12.2196004,189.55,189.48,27.9737004]
[1730950382866,12.2196004,189.56,189.5,12.2196004]
[1730950383178,12.2196004,189.58,189.51,11.7196004]
[1730950383684,12.2196004,189.57,189.5,12.2196004]
[1730950384580,12.2196004,189.56,189.5,12.2196004]
[1730950385783,12.3450904,189.58,189.51,12.2196004]
[1730950385981,0.12549,189.58,189.52,12.2196004]
[1730950386186,12.2196004,189.56,189.49,12.2196004]
[1730950386368,0.12549,189.55,189.49,12.2196004]
[1730950386574,12.2196004,189.52,189.46,0.583521]
[1730950386874,12.2196004,189.54,189.47,12.2196004]
[1730950387072,12.3450904,189.53,189.47,12.2196004]
[1730950387985,12.3450904,189.53,189.46,12.8031214]
[1730950388190,12.3450904,189.53,189.47,12.2196004]
[1730950388394,12.2196004,189.56,189.49,12.2196004]
[1730950388679,18.2525004,189.59,189.52,12.2196004]
[1730950388862,12.2196004,189.61,189.54,12.2196004]
[1730950389057,0.12549,189.6,189.54,12.2196004]
[1730950389265,12.2196004,189.61,189.54,12.2196004]
[1730950389469,12.2196004,189.61,189.55,12.2196004]
[1730950389882,16.1826,189.62,189.56,12.2196004]
[1730950390087,24.13307559,189.64,189.57,12.2196004]
[1730950390263,5.50017519,189.64,189.58,12.2196004]
[1730950390472,5.50017519,189.64,189.52,15.4292]
[1730950390473,12.2196004,189.65,189.59,12.2196004]
[1730950390761,12.2196004,189.65,189.58,12.2196004]
[1730950391188,12.2196004,189.65,189.52,16.7747186]
[1730950391189,16.1826,189.67,189.61,12.2196004]
[1730950391366,24.13166827,189.68,189.63,12.2196004]
[1730950391367,11.91206787,189.68,189.63,12.2196004]
[1730950391689,28.4022004,189.71,189.64,12.2196004]
[1730950391870,12.2196004,189.7,189.64,12.2196004]
[1730950392183,12.2196004,189.66,189.6,12.2196004]
[1730950392390,5.49897492,189.71,189.53,12.2196004]
[1730950392391,0.12549,189.7,189.61,12.2196004]
[1730950392573,5.49897492,189.71,189.55,20.0]
[1730950392763,0.12549,189.7,189.59,12.2196004]
[1730950392964,12.2196004,189.65,189.59,12.2196004]
[1730950393167,12.2196004,189.66,189.59,12.2196004]
[1730950393384,19.57099137,189.66,189.59,19.57099137]
[1730950393563,19.57099137,189.68,189.61,19.57099137]
[1730950393885,5.49897492,189.71,189.66,19.57099137]
[1730950394092,5.49897492,189.71,189.54,20.0]
[1730950394093,5.49897492,189.71,189.62,15.7869]
[1730950394289,6.6426,189.77,189.62,15.7869]
[1730950394290,6.6426,189.77,189.63,43.776884]
[1730950394595,0.12549,189.76,189.63,20.0]
[1730950394891,12.14133638,189.77,189.63,20.0]
[1730950395094,5.49873638,189.77,189.71,19.57099137]
[1730950395391,19.57099137,189.81,189.75,19.57099137]
[1730950395579,19.57099137,189.82,189.75,19.57099137]
[1730950396084,19.57099137,189.83,189.76,19.57099137]
[1730950396288,6.6426,189.84,189.78,19.57099137]
[1730950396473,19.57099137,189.83,189.75,19.57099137]
[1730950396786,19.57099137,189.78,189.71,19.57099137]
[1730950397573,19.57099137,189.76,189.69,19.57099137]
[1730950397887,19.69648137,189.77,189.7,19.57099137]
[1730950398087,19.57099137,189.76,189.7,19.57099137]
[1730950398290,19.57099137,189.74,189.67,19.57099137]
[1730950398475,19.57099137,189.73,189.66,19.57099137]
[1730950400190,23.902374,189.75,189.63,19.57099137]
[1730950400191,19.69648137,189.7,189.63,19.57099137]
[1730950400493,19.57099137,189.69,189.62,19.57099137]
[1730950400671,0.12549,189.67,189.61,19.57099137]
[1730950401269,19.57099137,189.68,189.61,19.57099137]
[1730950401469,19.57099137,189.67,189.6,19.57099137]
[1730950401902,19.57099137,189.67,189.57,16.2854]
[1730950401903,23.776884,189.71,189.64,19.57099137]
[1730950402187,19.57099137,189.75,189.68,19.57099137]
[1730950402387,19.57099137,189.75,189.58,0.32549]
[1730950402388,19.57099137,189.76,189.69,19.57099137]
[1730950402580,34.69649137,189.77,189.7,19.57099137]
[1730950402783,34.69649137,189.77,189.64,19.57099137]
[1730950402784,15.1255,189.77,189.71,19.57099137]
[1730950402984,6.5309,189.78,189.72,19.57099137]
[1730950403192,6.5309,189.78,189.73,19.57099137]
[1730950403377,0.12549,189.73,189.6,20.0]
[1730950403570,19.57099137,189.68,189.61,19.57099137]
[1730950403790,15.4488,189.72,189.53,19.57099137]
[1730950403791,19.57099137,189.67,189.6,19.57099137]
[1730950404000,19.57099137,189.7,189.63,19.57099137]
[1730950404377,19.57099137,189.69,189.62,19.57099137]
[1730950404594,19.57099137,189.68,189.61,19.57099137]
[1730950405270,0.12549,189.66,189.6,19.57099137]
[1730950405471,19.69648137,189.66,189.59,19.57099137]
[1730950405670,19.57099137,189.65,189.58,19.57099137]
[1730950405884,0.12549,189.66,189.59,19.57099137]
[1730950407690,19.57099137,189.66,189.59,19.57099137]
[1730950408072,19.57099137,189.66,189.57,19.57099137]
[1730950408073,0.12549,189.63,189.57,19.57099137]
[1730950408275,19.69648137,189.62,189.55,19.57099137]
[1730950408492,0.12549,189.59,189.53,19.57099137]
[1730950409088,23.776884,189.65,189.5,6.337]
[1730950409089,19.57099137,189.61,189.54,19.57099137]
[1730950409381,19.57099137,189.62,189.55,19.57099137]
[1730950409805,19.69648137,189.61,189.54,19.57099137]
[1730950410513,19.57099137,189.62,189.55,19.57099137]
[1730950410906,0.12549,189.64,189.58,19.57099137]
[1730950411199,25.67159137,189.66,189.59,19.57099137]
[1730950411782,0.12549,189.65,189.58,19.57099137]
[1730950411981,0.12549,189.65,189.5,6.437]
[1730950411982,19.57099137,189.64,189.57,19.57099137]
[1730950412212,19.57099137,189.6,189.5,6.337]
[1730950412384,0.12549,189.61,189.55,19.57099137]
[1730950412790,19.57099137,189.64,189.57,19.57099137]
[1730950413693,19.69648137,189.65,189.59,19.57099137]
[1730950413895,0.12549,189.65,189.6,19.57099137]
[1730950414088,0.12549,189.65,189.59,19.57099137]
[1730950414295,0.12549,189.65,189.58,19.57099137]
[1730950414610,0.12549,189.65,189.59,19.57099137]
[1730950415584,0.12549,189.65,189.6,19.57099137]
[1730950415889,19.69648137,189.65,189.58,19.57099137]
[1730950416293,0.12549,189.65,189.59,19.57099137]
[1730950416795,0.12549,189.65,189.58,19.57099137]
[1730950417115,19.57099137,189.68,189.6,19.57099137]
[1730950417413,19.57099137,189.69,189.62,19.57099137]
[1730950417725,19.57099137,189.74,189.67,19.57099137]
[1730950418009,17.07420525,189.75,189.58,15.5209]
[1730950418010,19.57099137,189.73,189.66,19.57099137]
[1730950418212,19.57099137,189.72,189.65,19.57099137]
[1730950418418,19.69648137,189.66,189.59,20.0]
[1730950418710,19.57099137,189.62,189.55,19.57099137]
[1730950419214,19.57099137,189.63,189.56,19.57099137]
[1730950419518,19.57099137,189.62,189.55,19.57099137]
[1730950420003,6.3489,189.65,189.5,6.337]
[1730950420004,19.57099137,189.6,189.53,19.57099137]
[1730950420713,19.57099137,189.62,189.55,19.57099137]
[1730950420901,19.57099137,189.63,189.56,19.57099137]
[1730950421091,6.3489,189.65,189.55,19.57099137]
[1730950421092,19.57099137,189.62,189.55,19.57099137]
[1730950421296,19.57099137,189.62,189.54,19.57099137]
[1730950421498,19.57099137,189.6,189.53,19.57099137]
[1730950423393,19.57099137,189.56,189.49,19.57099137]
[1730950423598,19.57099137,189.57,189.5,19.57099137]
[1730950424005,19.57099137,189.6,189.53,19.57099137]
[1730950424221,43.34787537,189.61,189.54,19.57099137]
[1730950424606,19.57099137,189.6,189.53,19.57099137]
[1730950425412,43.34787537,189.61,189.54,19.57099137]
[1730950425707,19.57099137,189.61,189.54,19.57099137]
[1730950425905,19.57099137,189.64,189.57,19.57099137]
[1730950426123,19.57099137,189.64,189.58,19.57099137]
[1730950426305,0.12549,189.66,189.61,19.57099137]
[1730950427121,0.12549,189.66,189.6,19.57099137]
[1730950427419,0.12549,189.66,189.53,19.57099137]
[1730950427420,19.69648137,189.66,189.59,19.57099137]
[1730950427726,19.69648137,189.66,189.53,19.57099137]
[1730950427727,0.12549,189.66,189.6,19.57099137]
[1730950428306,19.57099137,189.64,189.57,19.57099137]
[1730950428521,19.57099137,189.63,189.56,19.57099137]
[1730950429103,0.12549,189.63,189.57,19.57099137]
[1730950429719,23.776884,189.64,189.59,19.57099137]
[1730950430031,0.12549,189.66,189.6,19.57099137]
[1730950430203,0.12549,189.66,189.62,19.57099137]
[1730950431324,0.12549,189.66,189.63,19.57099137]
[1730950431918,0.12549,189.66,189.61,19.57099137]
[1730950432430,0.12549,189.66,189.62,19.57099137]
[1730950432610,0.12549,189.66,189.61,19.57099137]
[1730950433307,19.69648137,189.66,189.6,19.57099137]
[1730950434806,0.12549,189.66,189.6,19.57099137]
[1730950437321,0.12549,189.66,189.62,12.22861167]
[1730950437525,0.12549,189.66,189.63,12.22861167]
[1730950437831,0.12549,189.66,189.62,12.22861167]
[1730950438039,0.12549,189.66,189.6,12.22861167]
[1730950438328,12.35410167,189.66,189.59,12.22861167]
[1730950438626,12.22861167,189.65,189.58,12.22861167]
[1730950440011,23.776884,189.65,189.59,12.22861167]
[1730950440254,36.00549567,189.65,189.58,12.22861167]
[1730950440524,23.776884,189.65,189.59,12.22861167]
[1730950440914,36.00549567,189.65,189.58,12.22861167]
[1730950441244,12.22861167,189.65,189.58,12.22861167]
[1730950442609,0.12549,189.64,189.58,12.22861167]
[1730950442814,12.22861167,189.65,189.52,24.61953261]
[1730950442815,12.22861167,189.62,189.56,12.22861167]
[1730950443118,12.22861167,189.63,189.56,12.22861167]
[1730950444206,0.12549,189.66,189.61,12.22861167]
[1730950444416,0.12549,189.66,189.63,12.22861167]
[1730950444740,0.12549,189.66,189.64,12.22861167]
[1730950444925,0.12549,189.66,189.65,12.22861167]
[1730950445226,0.12549,189.66,189.65,32.22861167]
[1730950445430,0.12549,189.66,189.65,39.55318317]
[1730950447236,0.12549,189.66,189.65,63.33006717]
[1730950447608,0.12549,189.66,189.65,63.45555717]
[1730950447609,9e-05,189.66,189.65,63.45555717]
[1730950450235,9e-05,189.66,189.65,63.55555717]
[1730950450913,9e-05,189.66,189.65,63.45555717]
[1730950454034,9e-05,189.66,189.65,39.55318317]
[1730950454241,9e-05,189.66,189.64,19.55318317]
[1730950454530,9e-05,189.66,189.56,15.3986]
[1730950454531,9e-05,189.66,189.62,19.55318317]
[1730950454737,9e-05,189.66,189.63,19.55318317]
[1730950454917,9e-05,189.66,189.56,15.4986]
[1730950454918,9e-05,189.66,189.64,19.55318317]
[1730950455312,9e-05,189.66,189.63,19.55318317]
[1730950456738,9e-05,189.66,189.64,2.350668]
[1730950457238,9e-05,189.66,189.65,19.55318317]
[1730950457444,9e-05,189.66,189.65,39.55318317]
[1730950458358,9e-05,189.66,189.64,2.350668]